Cogmind - Beta 16.1 @@@ ROGUE MODE // 2026.02.18 @ 18:18:22 Player: Artefact Result: Destroyed by S-10 Pest with Light Assault Rifle Performance ------------- Evolutions (0) 0 Regions Visited (2) 400 Robots Destroyed (13) 65 Value Destroyed (171) 171 Prototype IDs (0) 0 Alien Tech Used (0) 0 Bonus (0) 0 TOTAL SCORE: 636 Bonus ------- None Cogmind --------- Core Integrity 0/250 Matter 294/300 Energy 100/100 System Corruption 0% Temperature Cool (0) Movement Core (100) Ox1 Location -10/Mines Parts ------- > --- POWER (1) -------- (None) > --- PROPULSION (2) --- Wheel > --- UTILITY (2) ------ Small Storage Unit > --- WEAPON (2) ------- (None) > --- INVENTORY (8) ---- Ion Engine Flight Unit Flight Unit Flight Unit Small Storage Unit Medium Matter Pod (76) Peak State ------------ > --- POWER ------------ Light Ion Engine > --- PROPULSION ------- Aluminum Leg Aluminum Leg > --- UTILITY ---------- Small Storage Unit Improved Terrain Scanner > --- WEAPON ----------- Small Laser Light Assault Rifle > --- INVENTORY -------- Ion Engine Wheel Wheel Small Storage Unit EM Pulse Gun [Rating: 9] Favorites ----------- Power Light Ion Engine Engine Light Ion Engine Propulsion Aluminum Leg Leg Aluminum Leg Wheel Wheel Utility Small Storage Unit Device Improved Terrain Scanner Storage Small Storage Unit Weapon Small Laser Energy Gun Small Laser Ballistic Gun Light Assault Rifle Special Weapon Mining Laser Build | -11 -10 -10 ------- Run | Yrd Mat Min Slots Evolved . | . . . Power . | . . . Propulsion . | . . . Utility . | . . . Weapon . | . . . Parts Attached 15 | 8 5 2 Power 2 | 1 1 . Engine 2 | 1 1 . Core . | . . . Reactor . | . . . Propulsion 5 | 2 2 1 Treads . | . . . Leg 4 | 2 2 . Wheel 1 | . . 1 Hover . | . . . Flight . | . . . Utility 3 | 3 . . Device 1 | 1 . . Storage 2 | 2 . . Processor . | . . . Hackware . | . . . Protection . | . . . Artifact . | . . . Weapon 5 | 2 2 1 Energy Gun 3 | 1 2 . Energy Cannon . | . . . Ballistic Gun 1 | 1 . . Ballistic Cannon . | . . . Launcher . | . . . Special Weapon 1 | . . 1 Impact Weapon . | . . . Slashing Weapon . | . . . Piercing Weapon . | . . . Special Melee Weapon . | . . . Unidentified Prototypes . | . . . Parts Lost 8 | . . 8 Power 1 | . . 1 Propulsion 3 | . . 3 Utility 1 | . . 1 Weapon 3 | . . 3 Highest Loss Streak 8 | . . 8 To Critical Strikes . | . . . Average Backups 6 | 3 6 6 Power . | . 1 1 Propulsion 3 | 1 3 3 Utility 1 | . 1 2 Weapon . | . 1 . Tool/Special . | . . . Unused Backups 7 | . 3 4 Power 1 | . . 1 Propulsion 5 | . 2 3 Utility 1 | . 1 . Weapon . | . . . Tool/Special . | . . . Average Slot Usage (%) 90 | . 100 54 Engine 11 | . 14 3 Leg 24 | . 28 11 Device 13 | . 14 10 Storage 14 | . 14 14 Energy Gun 17 | . 20 5 Ballistic Gun 5 | . 7 . Special Weapon 1 | . . 5 Peak Build Rating 9 | 9 9 9 Average Rating 7 | 5 9 5 On Entrance 6 | . 9 9 Avg Prop Armor Cover (%) . | . . . Naked Turns . | . . . Heaviest Build 12 | 11 12 11 Greatest Support 20 | 20 20 20 Greatest Overweight (x) 1 | . . 1 Average Overweight (x) . | . . . Largest Inventory Capacity 8 | 8 8 8 Average Capacity 7 | 7 8 8 Most Carried 8 | 6 8 8 Average Carried 6 | 3 6 6 Final Capacity 8 | 8 8 8 Final Carried 8 | 5 8 6 Class Distribution -------------------- 72% | Mutant 27% | Scavenger-Mutant Dominant Class ---------------- Mutant | -10/Materials Mutant | -10/Mines Resources | -11 -10 -10 ----------- Run | Yrd Mat Min Matter Collected 424 | 286 72 66 Remotely . | . . . Salvage Created 363 | 107 256 . Parts 22 | 10 12 . Haulers Intercepted . | . . . Recyclers Shooed . | . . . Parts Field Recycled . | . . . Retrieved Matter . | . . . Parts Self-Destructed . | . . . Prevented . | . . . Parts Restored . | . . . Kills | -11 -10 -10 ------- Run | Yrd Mat Min Combat Hostiles Destroyed 8 | . 8 . Guns 7 | . 7 . AOE 1 | . 1 . Classes Destroyed 4 | 2 2 . Tunneler 3 | 3 . . Recycler 2 | 1 1 . Swarmer 6 | . 6 . Grunt 2 | . 2 . Best Kill Streak 3 | 3 3 . Combat Bots Only 2 | . 2 . Max Kills in Single Turn 1 | 1 1 . Gunslinging . | . . . Exploded 1 | . 1 . Melee . | . . . Uniques/NPCs Destroyed . | . . . Combat | -11 -10 -10 -------- Run | Yrd Mat Min Hostile Shots Fired 134 | . 62 72 Missed 40 | . 20 20 Hits 94 | . 42 52 Projectile 94 | . 42 52 Critical Strikes 4 | . 1 3 Damage Taken 946 | . 357 589 Core 250 | . 75 175 Absorbed by Shields . | . . . Core Remaining (%) 100 | 100 . . Volleys Fired 52 | 16 27 9 Largest 2 | 2 2 2 Hottest 80 | 60 80 80 Shots Fired 97 | 32 54 11 Gun 97 | 32 54 11 Cannon . | . . . Launcher . | . . . Special . | . . . Kinetic 38 | 16 22 . Thermal 52 | 16 27 9 Explosive . | . . . Electromagnetic 7 | . 5 2 Robot Hit Streak 14 | 6 13 14 Robot Miss Streak 4 | 2 4 2 Penetration Max . | . . . Secondary Targets 1 | . 1 . Max Gunslinging Chain 1 | . 1 . Shots Hit Robots 55 | 21 29 5 Core Hits 21 | 6 13 2 Critical Kills . | . . . Critical Parts Destroyed . | . . . Critical Strikes . | . . . Melee Attacks . | . . . Impact . | . . . Slashing . | . . . Piercing . | . . . Sneak Attacks . | . . . Combat Hostiles . | . . . Follow-up Attacks . | . . . Damage Inflicted 622 | 204 356 62 Guns 557 | 204 295 58 Cannons . | . . . Explosions 58 | . 58 . Melee . | . . . Ramming 7 | . 3 4 Kinetic 158 | 84 74 . Thermal 377 | 120 214 43 Explosive . | . . . Electromagnetic 80 | . 65 15 Impact . | . . . Slashing . | . . . Piercing . | . . . Highest Corruption . | . . . Average Corruption . | . . . Corruption Purged . | . . . Corruption Blocked . | . . . Overload Shots . | . . . Overflow Damage . | . . . Projectiles . | . . . Explosions . | . . . Melee . | . . . Knockbacks . | . . . Impact . | . . . Kinetic . | . . . Secondary . | . . . Self-Inflicted Damage 2 | . . 2 Shots . | . . . Rammed 2 | . . 2 Targets Rammed 3 | . 1 2 Kicked 1 | . 1 . Crushed . | . . . Highest Temperature 141 | 40 126 141 Average Temperature 38 | 22 32 73 Received Heat Transfer 321 | . 48 273 Siege Activations . | . . . Martial Activations . | . . . Shielding Activations . | . . . Robots Disrupted . | . . . Combat Hostiles . | . . . Robots Corrupted . | . . . Combat Hostiles . | . . . Parts Fried . | . . . Impact Corruptions . | . . . Robots Melted . | . . . Combat Hostiles . | . . . Parts Melted . | . . . Heat Transferred 825 | 275 450 100 Parts Sabotaged . | . . . Parts Stolen . | . . . Parts Stripped . | . . . Power Chain Reactions 1 | . 1 . Alert | -11 -10 -10 ------- Run | Yrd Mat Min Maximum Alert Level . | . . . Low Security (%) 100 | 100 100 100 Level 1 . | . . . Level 2 . | . . . Level 3 . | . . . Level 4 . | . . . Level 5 . | . . . High Security . | . . . Max Security . | . . . Peak Influence 158 | 5 158 31 Initial 31 | . . 31 Average 49 | . 74 8 Influence Increases 344 | 20 264 60 Destroy 0b10 Robot/C 160 | . 160 . Destroy 0b10 Robot/NC 25 | 20 5 . Destroy Leader 30 | . 30 . Successful Hack 6 | . 6 . Disable Machine 15 | . 15 . Destroy Structure 3 | . 3 . Lose Combat Pursuer 105 | . 45 60 Influence Decreases 324 | 20 184 120 Entered New Map 49 | . . 49 Time Decay 234 | 20 184 30 Lost Part 41 | . . 41 Squads Dispatched 3 | . 3 . Investigation 2 | . 2 . Extermination . | . . . Reinforcement 1 | . 1 . Assault . | . . . Garrison . | . . . Intercept . | . . . Searches Triggered . | . . . Construction Impeded . | . . . Haulers Reinforced . | . . . Active Scanning Responses . | . . . Cargo Convoy Interrupts . | . . . Stealth | -11 -10 -10 --------- Run | Yrd Mat Min Distress Signals 3 | . 3 . Communications Jammed . | . . . Distress Signals . | . . . Times Spotted 21 | . 14 7 Peak Tracking Total 5 | . 4 5 Tactical Retreats 4 | . 2 2 Traps | -11 -10 -10 ------- Run | Yrd Mat Min Traps Triggered 1 | . 1 . Indirectly . | . . . Trap Hack Attempts . | . . . Triggered . | . . . Disarmed . | . . . Reprogrammed . | . . . Reused . | . . . Traps Extracted . | . . . Installed . | . . . Triggered . | . . . Machines | -11 -10 -10 ---------- Run | Yrd Mat Min Machines Disabled 1 | . 1 . Max in Single Turn 1 | . 1 . Machines Repaired . | . . . Machines Dismantled . | . . . Machines Sabotaged . | . . . Overloaded Fab Kills . | . . . Hacking | -11 -10 -10 --------- Run | Yrd Mat Min Machines Accessed 3 | . 3 . Terminals 2 | . 2 . Fabricators . | . . . Repair Stations . | . . . Recycling Units 1 | . 1 . Scanalyzers . | . . . Garrison Access . | . . . Total Hacks 7 | . 7 . Successful 3 | . 3 . Failed 4 | . 4 . Catastrophic . | . . . Database Lockouts . | . . . Manual 2 | . 2 . Terminals 5 | . 5 . Fabricators . | . . . Repair Stations . | . . . Recycling Units 2 | . 2 . Scanalyzers . | . . . Garrison Access . | . . . Terminal Hacks 2 | . 2 . Emergency Access Points 1 | . 1 . Zone Layout 1 | . 1 . Fabricator Hacks . | . . . Repair Station Hacks . | . . . Recycling Unit Hacks 1 | . 1 . Retrieve Components 1 | . 1 . Scanalyzer . | . . . Garrison Access Hacks . | . . . Unauthorized Hacks . | . . . Terminals . | . . . Fabricators . | . . . Repair Stations . | . . . Recycling Units . | . . . Scanalyzers . | . . . Garrison Access . | . . . Data Cores Recovered . | . . . Used . | . . . Hacking Detections 2 | . 2 . Full Trace Events 1 | . 1 . Feedback Events . | . . . Feedback Blocked . | . . . Robot Schematics Acquired . | . . . Robots Built . | . . . Authchips . | . . . Time . | . . . Total Robot Build Rating . | . . . Part Schematics Acquired . | . . . Parts Built . | . . . Authchips . | . . . Time . | . . . Total Part Build Rating . | . . . Part Studies Acquired . | . . . Parts Repaired . | . . . Time . | . . . Parts Recycled . | . . . Recycled Matter . | . . . Retrieved Matter . | . . . Retrieved Components 3 | . 3 . Parts Scanalyzed . | . . . Part Schematics Acquired . | . . . Parts Damaged . | . . . Bothacking | -11 -10 -10 ------------ Run | Yrd Mat Min Used RIF Installer . | . . . Robots Hacked . | . . . Non-combat . | . . . Combat . | . . . Robot Hacks Applied . | . . . Relay Couplers Released . | . . . Fabnet Peak Effective % . | . . . Robots Rewired . | . . . Allies Hacked . | . . . Hacks Repelled . | . . . Allies | -11 -10 -10 -------- Run | Yrd Mat Min Total Allies . | . . . Largest Group . | . . . Highest-Rated Group . | . . . Highest-Rated Ally . | . . . Total Orders . | . . . Ally Attacks . | . . . Total Damage . | . . . Kills . | . . . Allies Corrupted . | . . . Allies Melted . | . . . Intel | -11 -10 -10 ------- Run | Yrd Mat Min Active Infowar (turns) 486 | 8 404 74 Terrain 486 | 8 404 74 Robot Analysis Total . | . . . Derelict Logs Recovered 1 | . . 1 Drone Launches . | . . . Drone Recoveries . | . . . Exploration | -11 -10 -10 ------------- Run | Yrd Mat Min Turns Passed 630 | 124 404 102 Spaces Moved 380 | 59 248 73 Core 35 | 11 . 24 Treads . | . . . Legs 323 | 48 248 27 Wheels 22 | . . 22 Hover . | . . . Flight . | . . . Fastest Speed 50 | 50 120 80 Average Speed 114 | 106 120 104 Slowest Speed 190 | 120 120 190 Overloaded Moves . | . . . Propulsion Burnouts . | . . . Robots Hopped . | . . . Potential Cave-ins . | . . . Cave-ins Triggered . | . . . Exploration Rate (%) 22 | 3 36 28 Regions Visited 2 Branch Regions 1 Pre-discovered Areas 1 | . . 1 Known Exits Taken . | . . . Unknown Exits Taken 2 | 1 1 . Scrap Searched 1 | . . 1 Spaces Dug . | . . . Terrain Destroyed 3 | . 3 . Melee . | . . . Projectile . | . . . AOE 3 | . 3 . Terrain Rammed . | . . . Walls Destroyed . | . . . Machines Disabled . | . . . Actions | -11 -10 -10 --------- Run | Yrd Mat Min Total 482 | 88 307 87 Wait 14 | . 14 . Move 378 | 58 247 73 Hop . | . . . Pick Up 11 | 5 6 . Fast Attach 8 | 7 . 1 Attach 4 | 1 1 2 Detach 1 | 1 . . Swap 4 | . 4 . Drop 7 | . 7 . Fire 52 | 16 27 9 Melee . | . . . Ram 2 | . . 2 Kick 1 | . 1 . Crush . | . . . Escape Stasis . | . . . Rewire . | . . . Trap . | . . . Miscellaneous . | . . . Route ------- -11/Scrapyard -10/Materials (discovered 2 exits: [*Min x2]) -10/Mines History --------- Turn | Location | Event 12 | -11/Scrapyard | Discovered new exit (range 15) 125 | -11/Scrapyard | Entered Materials 173 | -10/Materials | Discovered new exit (range 13) 309 | -10/Materials | Build established: Mutant 490 | -10/Materials | Discovered new exit (range 12) 529 | -10/Materials | Entered Mines 580 | -10/Mines | Met a Derelict bent on vengeance 597 | -10/Mines | Core integrity fell below 50% 616 | -10/Mines | Core integrity fell below 20% 619 | -10/Mines | Learned location of Storage (-9) 631 | -10/Mines | Destroyed by S-10 Pest with Light Assault Rifle Last Messages --------------- 00553_ Aluminum Leg destroyed. 00559_ Lgt. Ion Engine destroyed. 00559_ Sml. Laser destroyed. 00584_ Mining Laser destroyed. 00586_ Aluminum Leg destroyed. 00598_ T-07 Excavator is excavating. 00603_ Imp. Terrain Scanner destroyed. 00605_ Searching scrap... 00605_ Found Wheel. 00605_ Found Ion Engine. 00605_ Found 66 Matter. 00606_ Acquired 66 matter. 00608_ Acquired Wheel. 00619_ Acquired derelict log, extracted data. World map updated: -9/Storage. 00627_ Slammed into S-10 Pest. 00628_ K-01 Serf collects debris. 00628_ Slammed into S-10 Pest. 00628_ Wheel broken. 00628_ Destabilizing: Short circuit. Map ----- +----------------------------------------------------+ | ?????????????????????????????????????????????????? | | ?????????????????????????????????????????????????? | | ?????????????????????????????????????????????????? | | ?????????????????????????????????????????????????? | | ?????????????????????????????????????????????????? | | ?????????????????????????????????????????????????? | | ?????????????????????????????????????????????????? | | ?????????????????????????????????????????????????? | | ?????????????????????????????????????????????????? | | ?????????????????????????????????????????????????? | | ?????????????????????????????????????????????????? | | ?????????????????????????????????????????????????? | | ?????????????????????????????????????????????????? | | ?????????????????????????????????????????????????? | | ?????????????????????????????????????????????????? | | ?????????????????????????????#???????????????????? | | ??????????????????????#????? #???????????????????? | | ?????????????????????? ????? ##??????????????????? | | ?????????????????????? ????? #??????????????????? | | ?????????????????????# #??? #??????????????????? | | ?????????????????????# #??? ##?????????????????? | | ?????????????????????# #??# #?????????????????? | | ?????????????????????# ### #?????????????????? | | ?????????????????????# k #??????????????????? | | ?????????????????????# ## #??????????????????? | | ?????????????????????# ##@ #???????????????????? | | ?????????????????????# s #???????????????????? | | ?????????????????????# ### ##???????????????????? | | ?????????????????????# #??###????????????????????? | | ??????????????????#### ###########???????????????? | | ??????????????????# ???????????? | | ??????????????????# ???????????? | | ??????????????????# ##############??????????????? | | ??????????????????# #?####??????????????????????? | | ??????????????????# ### ##???????##???#????????? | | ????????????????### ## #####??? ### #????????? | | ?????????????#### # #??? ??????????? | | ??????????# ### #### #???????????? | | ?????????# ##?# ##??????????? | | ?????? ##??# #??????????? | | ?????? ##???#####* #??????????? | | ???????## ########????????# #??????????? | | ????????# #????????????#???# #??????????? | | ????????## #?????????????????# #??????????? | | ?????????### #?????????????????## #??????????? | | ???#???????###????????????#?????# ##??????????? | | ???????????????????????????????## #???????????? | | ????????#?????????????????????## #???????????? | | ???????????????????????????#### ##??????????? | | ?????????????????#????????# #???????????? | +----------------------------------------------------+ Best States ------------- Heat Dissipation 25 Energy Generation 10 Energy Capacity 125 Matter Stores 300 Matter Capacity 300 Sight Range 16 Terrain Scan Range 16 Terrain Scan Density 10 Evasion (%) 55 Item Schematics ----------------- None Robot Schematics ------------------ None Fabricated ------------ Nothing Repaired ---------- Nothing Studied --------- None Alien Tech Used ----------------- None Achievements -------------- None Challenges ------------ None Game ------ Seed MetafieldMassRailcannon Manual? 0 Play Time 00:16:57 Cumulative 6.3 hours Start 2026.02.18 @ 18:02:21 End 2026.02.18 @ 18:18:22 Sessions 1 Manual Loads 0 Difficulty Rogue Special Mode None Game No. 8 Rogue 8 Adventurer 0 Explorer 0 Win Type - Total 0 Types 0/0/0/0/0/0/0/0/0/0 Lore% 2 Gallery% 9 Achievement% 12 Wizard Run 0 Options --------- Layout 0 ASCII 1 Keyboard 1 Movement Arrows Keybinds 1 Fullscreen 2 Font 36/Terminus Map View 76x50 Zoom Use 0% Tactical HUD 1 Map Filters NONE Filters NONE Steam 1 RUN: bf8eae32-5d90-4b18-89f9-367ba590d5ea